bitfinex-derivatives/quotes_ETHF0:USTF0_20250417
["timestamp","ask_amount","ask_price","bid_price","bid_amount"]
[1744848001460,0.8816,1577.9,1577.8,0.8238]
[1744848001663,0.8816,1577.9,1577.7,3.2078]
[1744848001862,1.6936,1577.8,1577.7,3.2078]
[1744848002363,1.6936,1577.8,1577.6,0.00951353]
[1744848002663,1.6936,1577.8,1577.6,3.21731353]
[1744848003565,1.6936,1577.8,1577.6,4.48511353]
[1744848003761,2.96134,1577.8,1577.6,4.48511353]
[1744848004764,1.26776,1577.7,1577.6,3.21731353]
[1744848004963,4.58866,1577.7,1577.6,0.00951353]
[1744848005964,15.92766,1577.7,1577.6,0.00951353]
[1744848006166,15.92766,1577.7,1577.6,3.53e-06]
[1744848006563,2.4901,1577.7,1577.6,3.53e-06]
[1744848006765,7.25771,1577.8,1577.6,1.26784353]
[1744848006970,5.99,1577.8,1577.7,1.26776]
[1744848007264,5.48963,1577.9,1577.7,1.26774]
[1744848007567,5.48963,1577.9,1577.7,1.26775]
[1744848008672,3.3518,1578.0,1577.6,3.20780353]
[1744848008964,1.26768,1577.8,1577.6,4.47558353]
[1744848009168,1.26765,1577.9,1577.7,1.26774]
[1744848010166,1.26768,1577.8,1577.6,4.47558353]
[1744848010964,1.26768,1577.8,1577.6,1.26778353]
[1744848011162,1.26776,1577.7,1577.6,3.53e-06]
[1744848011869,6.26776,1577.7,1577.6,3.53e-06]
[1744848012061,11.21726,1577.7,1577.6,3.53e-06]
[1744848015964,11.33380291,1577.7,1577.6,3.53e-06]
[1744848016565,11.33380914,1577.7,1577.6,3.53e-06]
[1744848016767,17.32380914,1577.7,1577.6,3.53e-06]
[1744848018572,1.26845,1576.9,1576.7,5.856]
[1744848018774,1.26829,1577.1,1576.7,0.8208]
[1744848018974,5.49134,1577.0,1576.8,3.00156]
[1744848019166,1.26834,1577.0,1576.9,1.7331]
[1744848019367,5.49134,1577.0,1576.9,1.7331]
[1744848020175,1.26834,1577.0,1576.9,1.7331]
[1744848020469,0.00951353,1577.1,1576.9,1.7331]
[1744848020772,0.00951353,1577.1,1577.0,5.33273]
[1744848020973,0.00951353,1577.1,1577.0,2.12493]
[1744848021175,0.00951353,1577.1,1577.0,7.5915]
[1744848021561,4.48556353,1577.1,1577.0,1.7349]
[1744848021772,2.08976353,1577.1,1577.0,1.7349]
[1744848022374,0.00951353,1577.1,1577.0,1.7349]
[1744848022574,0.00951353,1577.1,1577.0,3.00323]
[1744848022774,1.27776353,1577.1,1577.0,1.7349]
[1744848022977,4.48556353,1577.1,1577.0,1.7349]
[1744848023168,1.26833,1577.0,1576.9,0.814]
[1744848023471,7.16003,1577.0,1576.9,2.4886]
[1744848023673,8.04353,1577.0,1576.9,2.4886]
[1744848028374,5.49233,1577.0,1576.9,2.4886]
[1744848029676,0.00951353,1577.1,1576.9,8.75701]
[1744848029879,0.00951353,1577.1,1577.0,2.5688]
[1744848030180,0.00951353,1577.1,1577.0,7.04493]
[1744848030380,0.00951353,1577.1,1577.0,12.04493]
[1744848031280,0.00951353,1577.1,1577.0,17.90093]
[1744848031577,2.8357,1577.2,1577.1,1.26825]
[1744848031781,0.2996,1577.2,1577.1,2.99145]
[1744848031982,1.2679,1577.6,1577.5,1.26793]
[1744848032184,1.26784,1577.6,1577.5,1.26793]
[1744848032479,5.49182,1577.7,1577.5,1.26793]
[1744848032680,5.49182,1577.7,1577.6,1.6969]
[1744848034076,1.27721353,1577.8,1577.6,1.6969]
[1744848034376,0.00951353,1577.8,1577.7,1.26776]
[1744848034882,0.00951353,1577.8,1577.7,5.34876]
[1744848035083,0.00951353,1577.8,1577.7,6.17296]
[1744848035585,1.27719353,1577.8,1577.7,1.6974]
[1744848035784,1.27719353,1577.8,1577.7,0.8242]
[1744848036477,1.27719353,1577.8,1577.7,2.5434]
[1744848037577,0.00951353,1577.8,1577.7,2.5434]
[1744848038372,0.00951353,1577.8,1577.7,3.81116]
[1744848038577,0.00951353,1577.8,1577.7,4.69386]
[1744848039485,1.27719353,1577.8,1577.7,3.4261]
[1744848040190,1.27719353,1577.8,1577.7,2.5434]
[1744848040384,0.00951353,1577.8,1577.7,2.5434]
[1744848040888,0.00951353,1577.8,1577.7,3.81116]
[1744848041183,0.00951353,1577.8,1577.7,4.69616]
[1744848041581,0.00951353,1577.8,1577.7,3.4284]
[1744848042175,0.00951353,1577.8,1577.7,4.69616]
[1744848042376,0.00951353,1577.8,1577.7,9.69616]
[1744848042574,0.00951353,1577.8,1577.7,18.75996]
[1744848042772,2.5348,1578.0,1577.9,1.2676]
[1744848042977,13.822086,1578.7,1578.5,1.26712]
[1744848043176,13.81282572,1578.7,1578.5,1.26712]
[1744848043382,12.54582572,1578.7,1578.6,1.26704]
[1744848044085,12.54582572,1578.7,1578.6,2.08894]
[1744848046384,12.54582572,1578.7,1578.6,3.81194]
[1744848046890,12.54582572,1578.7,1578.6,2.5449]
[1744848047190,1.26704,1578.6,1578.5,7.43831353]
[1744848047385,3.02124,1578.6,1578.5,4.94031353]
[1744848047888,3.02124,1578.6,1578.5,0.00951353]
[1744848051188,6.22904,1578.6,1578.5,0.00951353]
[1744848051986,11.22904,1578.6,1578.5,0.00951353]
[1744848052186,17.21904,1578.6,1578.5,0.00951353]
[1744848057396,12.21904,1578.6,1578.5,0.00951353]
[1744848058093,9.01124,1578.6,1578.5,0.00951353]
[1744848058294,3.02124,1578.6,1578.5,0.00951353]
[1744848058497,1.7542,1578.6,1578.5,4.48443353]
[1744848058795,1.7542,1578.6,1578.5,9.48443353]
[1744848060399,1.26699,1578.7,1578.5,8.21731353]
[1744848060696,1.26699,1578.7,1578.5,4.48440353]
[1744848060898,2.95379,1578.7,1578.5,4.48440353]
[1744848061298,1.26704,1578.6,1578.5,3.21731353]
[1744848061498,2.95384,1578.6,1578.5,3.21731353]
[1744848062000,1.6868,1578.6,1578.5,4.48443353]
[1744848062299,2.95384,1578.6,1578.5,3.21731353]
[1744848062494,2.95384,1578.6,1578.5,0.00951353]
[1744848062702,7.17384,1578.6,1578.5,0.00951353]
[1744848064398,5.9068,1578.6,1578.5,0.00951353]
[1744848064592,2.95384,1578.6,1578.5,0.00951353]
[1744848067905,3.79754,1578.6,1578.5,0.00951353]
[1744848068310,1.6868,1578.6,1578.5,0.00951353]
[1744848068505,10.21951353,1578.8,1578.7,1.26696]
[1744848068706,13.19459353,1578.8,1578.6,1.26698]
[1744848069012,1.26704,1578.6,1578.5,0.00951353]
[1744848069403,3.02084,1578.6,1578.5,0.00951353]
[1744848071415,6.22864,1578.6,1578.5,0.00951353]
[1744848071815,8.02084,1578.6,1578.5,0.00951353]
[1744848072017,11.22864,1578.6,1578.5,0.00951353]
[1744848072617,12.10064,1578.6,1578.5,0.00951353]
[1744848074120,12.10064,1578.6,1578.5,3.53e-06]
[1744848074121,18.09064,1578.6,1578.5,3.53e-06]
[1744848078017,9.88284,1578.6,1578.5,3.53e-06]
[1744848078324,7.10064,1578.6,1578.5,3.53e-06]
[1744848079223,7.10064,1578.6,1578.5,1.26712353]
[1744848079525,7.10064,1578.6,1578.5,3.53e-06]
[1744848081120,3.89284,1578.6,1578.5,1.26712353]
[1744848081519,3.89284,1578.6,1578.5,3.53e-06]
[1744848081918,3.89284,1578.6,1578.5,1.61230353]
[1744848082827,3.89284,1578.6,1578.5,3.53e-06]
[1744848083031,7.10064,1578.6,1578.5,3.53e-06]
[1744848087633,3.89284,1578.6,1578.5,3.53e-06]
[1744848088133,7.10064,1578.6,1578.5,3.53e-06]
[1744848091434,2.6258,1578.6,1578.5,1.26712353]
[1744848091621,3.89284,1578.6,1578.5,3.53e-06]
[1744848092037,2.6258,1578.6,1578.5,1.67250353]
[1744848092333,15.03951614,1578.7,1578.5,2.93962353]
[1744848092531,17.65351614,1578.7,1578.5,1.67250353]
[1744848092835,17.65351614,1578.7,1578.5,2.93959353]
[1744848093037,7.22912,1578.7,1578.6,1.6725]
[1744848093427,4.69542,1578.7,1578.6,1.6725]
[1744848093635,0.00951353,1578.8,1578.7,1.26696]
[1744848093937,10.42439614,1578.9,1578.8,1.26688]
[1744848094235,5.76749512,1578.9,1578.8,49.50068]
[1744848094436,5.76749512,1578.9,1578.8,56.24998]
[1744848095732,5.76749512,1578.9,1578.8,57.06268]
[1744848095932,5.76749512,1578.9,1578.8,52.83668]
[1744848096128,5.76749512,1578.9,1578.8,47.83668]
[1744848096435,8.38559512,1578.9,1578.8,47.83668]
[1744848096739,0.00951353,1579.0,1578.9,1.2668]
[1744848097038,0.00951353,1579.0,1578.9,2.95]
[1744848097434,1.72691353,1579.0,1578.9,2.95]
[1744848098535,0.00951353,1579.0,1578.9,2.95]
[1744848099542,0.00951353,1579.0,1578.9,7.95]
[1744848100741,0.00951353,1579.0,1578.9,12.239]
[1744848101345,0.00951353,1579.0,1578.9,7.95]
[1744848102643,0.00951353,1579.0,1578.9,2.95]
[1744848103033,2.56871353,1579.0,1578.9,2.95]
[1744848103240,0.00951353,1579.0,1578.9,2.95]
[1744848103439,2.56871353,1579.0,1578.9,2.95]
[1744848104647,0.86301353,1579.0,1578.9,2.95]
[1744848105743,0.00951353,1579.0,1578.9,2.95]
[1744848107151,2.63571353,1579.0,1578.9,2.95]
[1744848108360,3.90247353,1579.0,1578.9,1.2668]
[1744848108544,1.26682,1578.9,1578.8,1.26682]
[1744848108746,2.4349,1578.9,1578.8,1.26682]
[1744848113746,2.4349,1578.9,1578.7,42.06694]
[1744848113955,2.88953,1578.8,1578.6,1.267]
[1744848114149,2.4701,1578.7,1578.6,1.267]
[1744848116359,3.73706,1578.7,1578.6,1.267]
[1744848117059,2.4701,1578.7,1578.6,1.267]
[1744848118158,3.73706,1578.7,1578.6,1.267]
[1744848119254,2.4701,1578.7,1578.6,1.267]
[1744848119756,2.4701,1578.7,1578.6,2.9748]
[1744848120560,3.73711,1578.7,1578.5,1.26707353]
[1744848120858,2.484,1578.6,1578.5,1.26707353]
[1744848121055,3.75104,1578.6,1578.5,3.53e-06]
[1744848124658,2.484,1578.6,1578.5,1.26712353]
[1744848124857,3.75104,1578.6,1578.5,3.53e-06]
[1744848125661,2.484,1578.6,1578.5,1.26712353]
[1744848125958,3.75104,1578.6,1578.5,1.26712353]
[1744848126158,3.75104,1578.6,1578.5,3.53e-06]
[1744848127461,1.26734,1578.3,1578.1,4.4752]
[1744848127661,2.6388,1578.2,1578.1,1.25813972]
[1744848129265,1.7567,1578.2,1578.1,1.25813972]
[1744848129466,1.7567,1578.2,1578.1,2.95743972]
[1744848129864,1.7567,1578.2,1578.1,3.77103972]
[1744848130562,3.4098,1578.3,1578.2,1.26736]
[1744848130762,3.40053972,1578.3,1578.2,2.99326]
[1744848131261,0.8755,1578.3,1578.2,2.99326]
[1744848131868,4.274,1578.7,1578.6,1.26704]
[1744848132069,6.7751,1578.7,1578.6,1.26704]
[1744848132271,2.5011,1578.7,1578.6,1.26704]
[1744848132473,2.5011,1578.7,1578.6,2.99294]
[1744848132771,0.8755,1578.7,1578.6,2.99294]
[1744848132966,6.023,1578.9,1578.8,1.26688]
[1744848133167,6.876,1578.9,1578.8,1.26688]
[1744848133367,6.876,1578.9,1578.8,2.86698]
[1744848133868,0.00951353,1579.0,1578.9,1.2668]
[1744848134063,0.00951353,1579.0,1578.9,6.8876]
[1744848134264,0.00951353,1579.0,1578.9,11.8876]
[1744848137374,0.00951353,1579.0,1578.9,52.6876]
[1744848138278,0.00951353,1579.0,1578.9,49.4798]
[1744848138479,0.00951353,1579.0,1578.9,52.6876]
[1744848139776,0.00951353,1579.0,1578.9,58.5436]
[1744848141574,0.00951353,1579.0,1578.9,53.5436]
[1744848142580,3.53e-06,1579.0,1578.9,53.5436]
[1744848150685,6.26672353,1579.0,1578.9,7.1228]
[1744848150876,1.2668,1578.9,1578.8,0.00951353]
[1744848151186,1.26696,1578.7,1578.6,1.267]
[1744848151376,1.26694,1578.8,1578.6,1.267]
[1744848151681,1.6869,1578.7,1578.6,1.267]
[1744848151883,2.5106,1578.7,1578.6,1.267]
[1744848157182,2.5106,1578.7,1578.5,44.01731353]
[1744848157388,1.6009,1578.6,1578.5,1.27663353]
[1744848157987,1.6009,1578.6,1578.5,42.07663353]
[1744848158390,1.6009,1578.6,1578.5,45.28443353]
[1744848164395,1.6009,1578.6,1578.5,46.95463353]
[1744848165995,0.8743,1578.8,1578.5,45.68751353]
[1744848166191,0.8743,1578.8,1578.7,4.47476]
[1744848166192,2.645,1578.8,1578.7,4.47476]
[1744848166393,2.645,1578.8,1578.7,1.26696]
[1744848168599,2.645,1578.8,1578.7,4.47476]
[1744848169897,0.8743,1578.8,1578.7,10.33076]
[1744848170102,0.8743,1578.8,1578.7,11.17146]
[1744848172096,0.8743,1578.8,1578.7,7.96366]
[1744848172302,0.8743,1578.8,1578.7,11.17146]
[1744848173099,2.5476,1578.8,1578.7,11.17146]
[1744848173499,2.5476,1578.8,1578.7,51.97146]
[1744848177408,2.53320353,1579.0,1578.9,1.2668]
[1744848177710,3.53e-06,1579.0,1578.9,4.4746]
[1744848180904,3.53e-06,1579.0,1578.9,10.3306]
[1744848183907,3.53e-06,1579.0,1578.9,51.1306]
[1744848184306,1.91056353,1579.1,1579.0,1.26672]
[1744848184613,1.7558,1579.2,1579.1,1.26664]
[1744848184810,1.7558,1579.2,1579.1,4.47444]
[1744848185011,1.7558,1579.2,1579.1,46.98654]
[1744848185707,0.82931353,1579.3,1579.2,1.26656]
[1744848185913,0.00951353,1579.3,1579.2,2.97866]
[1744848186113,0.00951353,1579.3,1579.2,8.83466]
[1744848186313,3.53e-06,1579.3,1579.2,8.83466]
[1744848186615,3.53e-06,1579.3,1579.2,9.65226]
[1744848186817,3.53e-06,1579.3,1579.2,50.45226]
[1744848187712,3.53e-06,1579.5,1579.4,1.2664]
[1744848188014,3.53e-06,1579.5,1579.4,14.5652]
[1744848188406,1.646,1579.6,1579.5,1.26632]
[1744848188613,1.646,1579.6,1579.5,3.02562]
[1744848188815,1.646,1579.6,1579.5,43.82562]
[1744848189411,1.646,1579.6,1579.5,49.68162]
[1744848191018,0.86461353,1579.7,1579.5,49.68162]
[1744848191314,12.51905407,1580.6,1580.5,1.26552]
[1744848191614,14.26455407,1580.6,1580.5,1.26552]
[1744848191913,14.26455407,1580.6,1580.5,7.12152]
[1744848191914,12.76472407,1580.6,1580.5,7.12152]
[1744848192115,6.42576407,1580.6,1580.5,12.62537475]
[1744848192315,4.89363407,1580.6,1580.5,9.70312]
[1744848192516,4.89363407,1580.6,1580.5,50.50312]
[1744848192721,6.63913407,1580.6,1580.5,50.50312]
[1744848193422,6.63913407,1580.6,1580.5,49.63412]
[1744848193712,11.63913407,1580.6,1580.5,47.92152]
[1744848193914,11.63913407,1580.6,1580.5,46.656]
[1744848194115,11.63913407,1580.6,1580.4,0.00951353]
[1744848194312,1.7021,1580.5,1580.4,1.27511353]
[1744848194516,1.7021,1580.5,1580.4,42.07511353]
[1744848194719,6.7021,1580.5,1580.4,42.07511353]
[1744848194919,6.7021,1580.5,1580.4,40.80951353]
[1744848195119,6.7021,1580.5,1580.4,42.07511353]
[1744848195718,6.7021,1580.5,1580.4,40.80951353]
[1744848196120,6.7021,1580.5,1580.4,42.07511353]
[1744848197115,7.5784,1580.5,1580.4,42.07511353]
[1744848198123,7.5784,1580.5,1580.4,0.00951353]
[1744848198324,12.05179,1580.5,1580.2,7.1217]
[1744848198624,1.26577,1580.2,1580.0,1.26587]
[1744848198923,1.7139,1580.1,1580.0,1.26587]
[1744848199413,6.7139,1580.1,1580.0,1.26592]
[1744848200322,7.97974,1580.1,1579.9,1.27545353]
[1744848200515,2.4818,1580.0,1579.9,1.27545353]
[1744848200818,2.4818,1580.0,1579.9,4.48325353]
[1744848204131,0.23133,1580.0,1579.9,10.33925353]
[1744848204316,0.8754,1580.1,1580.0,1.26592]
[1744848204519,0.8754,1580.1,1580.0,3.00742]
[1744848204718,0.7997,1580.4,1580.3,1.26568]
[1744848204918,0.7997,1580.4,1580.3,4.47348]
[1744848205930,0.00951353,1580.7,1580.6,1.26544]
[1744848206525,0.00951353,1580.7,1580.6,42.06544]
[1744848207019,3.53e-06,1580.7,1580.6,51.12924]
[1744848207226,3.53e-06,1580.7,1580.6,61.16034]
[1744848208030,1.6606,1581.5,1581.4,1.2648]
[1744848208223,5.48142,1581.9,1581.2,3.1624]
[1744848208429,1.6606,1581.6,1581.5,1.26472]
[1744848209119,0.00951353,1581.7,1581.6,1.26464]
[1744848211627,10.49009353,1581.7,1581.5,1.26467]
[1744848211833,1.7247,1581.6,1581.4,7.13025353]
[1744848212133,1.7247,1581.6,1581.4,5.86551353]
[1744848212322,0.8632,1581.5,1581.4,7.13023353]
[1744848212735,1.7247,1581.6,1581.5,1.26472]
[1744848212929,2.5879,1581.6,1581.5,1.26472]
[1744848213227,7.5879,1581.6,1581.5,1.26472]
[1744848213437,8.85256,1581.6,1581.4,7.13026353]
[1744848213624,3.85256,1581.6,1581.4,7.13026353]
[1744848213838,7.5879,1581.6,1581.4,7.13026353]
[1744848214027,7.5879,1581.6,1581.4,5.86551353]
[1744848214224,4.47252,1581.5,1581.4,0.00951353]
[1744848214523,6.20022,1581.5,1581.4,0.00951353]
[1744848214727,11.20022,1581.5,1581.4,0.00951353]
[1744848215525,6.20022,1581.5,1581.4,0.00951353]
[1744848215733,7.99242,1581.5,1581.4,0.00951353]
[1744848217324,11.20022,1581.5,1581.4,0.00951353]
[1744848217934,1.26512,1581.0,1580.6,40.8]
[1744848218129,7.11022,1580.9,1580.7,3.2078]
[1744848218435,5.913,1580.9,1580.8,1.26528]
[1744848219333,5.913,1580.9,1580.8,2.98598]
[1744848219532,3.2078,1581.1,1580.8,7.98598]
[1744848219735,4.8378,1581.1,1581.0,1.26512]
[1744848219936,6.10284,1581.1,1580.9,1.26514]
[1744848220141,4.8378,1581.1,1581.0,1.26512]
[1744848220336,4.8378,1581.1,1580.7,13.95735317]
[1744848220534,4.8378,1581.1,1580.9,1.26515]
[1744848220535,6.10288,1581.1,1580.9,1.26515]
[1744848220840,6.10288,1581.1,1581.0,1.26512]
[1744848221039,4.8378,1581.1,1581.0,1.26512]
[1744848221437,2.89504,1581.1,1580.9,1.26514]
[1744848221635,1.63,1581.1,1581.0,1.26512]
[1744848224439,5.1312,1581.2,1580.9,1.7113]
[1744848224440,4.283,1581.2,1581.1,1.26504]
[1744848224944,0.8065,1581.3,1581.2,1.26496]
[1744848225140,4.284,1581.4,1581.2,1.26496]
[1744848225338,1.6616,1581.5,1581.1,1.7471]
[1744848225339,1.6616,1581.5,1581.4,1.2648]
[1744848225539,1.6616,1581.5,1581.3,1.26482]
[1744848225741,1.2648,1581.4,1581.3,1.26482]
[1744848226047,2.92636,1581.5,1581.4,1.2648]
[1744848226344,1.2648,1581.4,1581.3,1.26481]
[1744848226548,2.9264,1581.4,1581.3,1.26481]
[1744848226948,1.6616,1581.4,1581.3,1.26481]
[1744848228849,9.8694,1581.4,1581.1,5.856]
[1744848229146,1.26496,1581.2,1581.1,5.856]
[1744848229749,3.82736,1581.2,1581.1,5.856]
[1744848230051,2.5624,1581.2,1581.1,7.12104]
[1744848230251,3.82736,1581.2,1581.1,5.856]
[1744848230453,3.82736,1581.2,1581.1,7.12104]
[1744848230753,3.82736,1581.2,1581.1,1.26504]
[1744848230952,3.82736,1581.2,1581.0,1.26506]
[1744848231353,1.26504,1581.1,1581.0,1.26506]
[1744848231652,3.02574,1581.1,1581.0,1.26506]
[1744848232044,1.7607,1581.1,1581.0,1.26506]
[1744848234151,3.02579,1581.1,1580.9,1.26514]
[1744848234558,5.9442,1581.0,1580.9,1.26514]
[1744848234758,7.20932,1581.0,1580.9,1.26514]
[1744848234960,7.20932,1581.0,1580.8,8.75901]
[1744848235257,1.6612,1580.9,1580.8,7.12121]
[1744848235651,1.6612,1580.9,1580.8,8.75901]
[1744848236557,1.6612,1580.9,1580.8,2.90301]
[1744848237558,4.283,1581.0,1580.9,1.2652]
[1744848237755,4.283,1581.0,1580.9,2.9425]
[1744848239460,5.54812,1581.0,1580.9,2.9425]
[1744848239662,7.19052,1581.0,1580.9,2.9425]
[1744848240469,5.9254,1581.0,1580.9,2.9425]
[1744848241261,7.19052,1581.0,1580.9,2.9425]
[1744848241464,5.9254,1581.0,1580.9,2.9425]
[1744848242264,7.19052,1581.0,1580.9,2.9425]
[1744848242458,5.9254,1581.0,1580.9,2.9425]
[1744848242659,4.283,1581.0,1580.9,2.9425]
[1744848242957,4.283,1581.0,1580.9,7.0199]
[1744848243157,4.283,1581.0,1580.9,3.8121]
[1744848243560,1.6583,1581.2,1580.9,2.5469]
[1744848243764,4.284,1581.2,1581.1,1.26504]
[1744848244265,4.284,1581.2,1581.1,2.14264]
[1744848245059,4.284,1581.2,1581.0,1.7108]
[1744848245358,1.6583,1581.1,1581.0,2.97586]
[1744848247865,1.6583,1581.1,1581.0,1.26506]
[1744848248069,1.26528,1580.8,1580.7,5.86548317]
[1744848248263,5.54928,1580.8,1580.7,0.00948317]
[1744848248766,8.03578,1580.8,1580.7,0.00948317]
[1744848249065,13.03578,1580.8,1580.7,0.00948317]
[1744848249863,13.55206314,1580.8,1580.7,0.00948317]
[1744848250068,13.66837958,1580.8,1580.7,0.00948317]
[1744848250571,13.66837665,1580.8,1580.7,0.00948317]
[1744848250768,19.65837665,1580.8,1580.7,0.00948317]
[1744848251862,19.14209351,1580.8,1580.7,0.00948317]
[1744848252164,19.14209253,1580.8,1580.7,0.00948317]
[1744848252671,19.65721458,1580.8,1580.7,0.00948317]
[1744848252871,19.65721458,1580.8,1580.7,3.17e-06]
[1744848253168,3.16381,1580.5,1580.0,5.856]
[1744848253372,1.26589,1580.1,1579.9,2.92536]
[1744848253672,5.56589,1580.1,1579.9,2.92536]
[1744848253868,1.752,1580.0,1579.9,2.92536]
[1744848255170,4.30948317,1580.1,1580.0,1.26592]
[1744848255373,4.30948317,1580.1,1580.0,2.86242]
[1744848256669,5.57532317,1580.1,1580.0,1.5965]
[1744848257566,5.57532317,1580.1,1579.9,1.26595]
[1744848257776,1.6111,1580.0,1579.9,2.99285]
[1744848258367,4.30948317,1580.1,1580.0,1.26592]
[1744848258566,4.30948317,1580.1,1580.0,2.99282]
[1744848259167,4.30948317,1580.1,1580.0,1.7269]
[1744848259469,5.57532317,1580.1,1580.0,1.7269]
[1744848259665,7.18642317,1580.1,1580.0,1.7269]
[1744848259864,5.92058317,1580.1,1580.0,1.7269]
[1744848260072,5.92058317,1580.1,1580.0,2.99282]
[1744848260274,5.92058317,1580.1,1580.0,1.7269]
[1744848260674,3.17e-06,1580.1,1580.0,11.20062]
[1744848260976,3.17e-06,1580.1,1580.0,17.05662]
[1744848261678,1.03146317,1580.2,1580.1,1.26584]
[1744848261873,4.47339,1580.5,1580.2,1.26568]
[1744848262068,1.5978,1580.5,1580.3,1.7193]
[1744848262279,4.301,1580.6,1580.5,1.26552]
[1744848263272,4.301,1580.6,1580.5,3.79532]
[1744848263978,4.301,1580.6,1580.5,9.65132]
[1744848264879,5.9462,1580.6,1580.5,9.65132]
[1744848265479,9.154,1580.6,1580.5,9.65132]
[1744848265679,5.9462,1580.6,1580.5,9.65132]
[1744848265982,0.00948317,1580.7,1580.6,1.26544]
[1744848266175,0.00948317,1580.7,1580.6,3.81934]
[1744848266368,0.00948317,1580.7,1580.6,8.81934]
[1744848266565,0.00948317,1580.7,1580.6,3.81934]
[1744848267880,1.26544,1580.6,1580.5,5.856]
[1744848268080,3.02844,1580.6,1580.5,5.856]
[1744848268469,3.02844,1580.6,1580.5,7.12152]
[1744848268779,1.763,1580.6,1580.5,7.12152]
[1744848268979,5.11448317,1580.7,1580.6,1.26544]
[1744848269174,4.31048317,1580.7,1580.6,3.02214]
[1744848271281,0.00948317,1580.7,1580.6,3.02214]
[1744848273585,0.00948317,1580.7,1580.6,6.22994]
[1744848274082,0.00948317,1580.7,1580.6,3.02214]
[1744848274377,0.00948317,1580.7,1580.6,6.22994]
[1744848275887,0.00948317,1580.7,1580.6,3.02214]
[1744848278487,1.75718317,1580.7,1580.6,3.02214]
[1744848282487,0.00948317,1580.7,1580.6,3.02214]
[1744848284197,0.00948317,1580.7,1580.6,6.22994]
[1744848285294,3.17e-06,1580.7,1580.6,12.08594]
[1744848285483,0.24477317,1580.9,1580.8,1.26528]
[1744848285681,0.24477317,1580.9,1580.8,8.80608]
[1744848285988,7.5408,1581.6,1581.2,1.26489]
[1744848286297,1.26482,1581.4,1581.1,5.856]
[1744848286488,1.6692,1581.3,1581.2,1.26496]
[1744848286793,1.6692,1581.3,1581.2,3.01916]
[1744848288293,1.6692,1581.3,1581.2,1.26496]
[1744848288502,6.14188,1581.3,1581.1,5.86548317]
[1744848288691,0.8606,1581.2,1581.1,7.13048317]
[1744848288892,2.594,1581.2,1581.1,1.27448317]
[1744848292601,1.27426266,1581.4,1581.1,0.00948317]
[1744848292796,0.89204266,1581.4,1581.3,1.26488]
[1744848292996,3.89254266,1581.4,1581.3,1.26488]
[1744848293199,2.62774266,1581.4,1581.3,1.26488]
[1744848295002,3.89257266,1581.4,1581.2,1.5946]
[1744848295198,1.7057,1581.3,1581.2,2.85956]
[1744848295802,0.89204266,1581.4,1581.3,1.26488]
[1744848296001,2.59774266,1581.4,1581.3,1.26488]
[1744848299001,0.00944266,1581.4,1581.3,1.26488]
[1744848299207,0.00944266,1581.4,1581.3,7.13928]
[1744848299406,0.00944266,1581.4,1581.3,10.34708]
[1744848300404,2.66e-06,1581.4,1581.3,16.20308]
[1744848301904,2.66e-06,1581.4,1581.3,52.00308]
[1744848302102,2.66e-06,1581.4,1581.3,57.00308]
[1744848302502,2.66e-06,1581.4,1581.3,61.33508]
[1744848303515,0.8137,1582.2,1582.1,1.26424]
[1744848303905,2.4192,1582.2,1582.1,1.26424]
[1744848304208,3.68336,1582.2,1582.0,1.26427]
[1744848304512,2.4061,1582.1,1582.0,1.26427]
[1744848305514,2.4061,1582.1,1582.0,2.90117]
[1744848306011,2.4061,1582.1,1582.0,1.26427]
[1744848306821,2.4061,1582.1,1582.0,2.96187]
[1744848307310,3.65429978,1582.6,1582.0,2.96187]
[1744848307311,3.2078,1582.5,1582.4,1.26396]
[1744848308314,3.2078,1582.5,1582.3,2.96164]
[1744848308315,4.47174,1582.5,1582.3,2.96164]
[1744848308515,14.239,1582.5,1582.0,9.0638]
[1744848308716,3.2078,1582.3,1582.2,1.26416]
[1744848309114,4.908,1582.3,1582.2,1.26416]
[1744848309315,6.17211,1582.3,1582.1,2.96182]
[1744848309518,1.704,1582.2,1582.0,7.12024]
[1744848309712,1.704,1582.2,1582.1,1.26424]
[1744848310415,1.704,1582.2,1582.1,2.94114]
[1744848311713,2.96816,1582.2,1582.1,1.6769]
[1744848311919,2.96816,1582.2,1582.0,7.12026]
[1744848312118,2.5369,1582.1,1582.0,7.12026]
[1744848312418,2.5369,1582.1,1582.0,10.32806]
[1744848312619,2.5369,1582.1,1582.0,12.05386]
[1744848313120,2.09346,1582.4,1582.2,1.26412]
[1744848313321,2.09698,1582.3,1582.2,1.26412]
[1744848313515,2.09704,1582.3,1582.1,2.99001]
[1744848313713,0.8329,1582.3,1582.2,1.26416]
[1744848314520,2.4859,1582.3,1582.2,1.26416]
[1744848314908,2.4859,1582.3,1582.2,2.98996]
[1744848315523,3.74998,1582.3,1582.2,1.7258]
[1744848315728,3.75004,1582.3,1582.1,1.26419]
[1744848315916,1.6507,1582.2,1582.1,1.26419]
[1744848316722,1.6507,1582.2,1582.0,5.856]
[1744848316924,1.6507,1582.2,1581.9,41.63198317]
[1744848316925,1.26432,1582.0,1581.9,0.00948317]
[1744848317313,9.56322,1582.0,1581.9,0.00948317]
[1744848318124,1.26472,1581.5,1581.1,5.856]
[1744848318325,3.16108,1581.9,1581.2,1.26496]
[1744848318326,1.26486,1581.4,1581.2,1.26496]
[1744848318535,1.26486,1581.4,1581.2,2.89506]
[1744848318914,1.26486,1581.4,1581.2,1.6301]
[1744848319318,1.26486,1581.4,1581.2,2.89503]
[1744848320026,1.26486,1581.4,1581.2,2.89505]
[1744848320826,1.26488,1581.3,1581.1,7.13048317]
[1744848321025,1.26486,1581.4,1581.1,8.76058317]
[1744848321229,2.95916,1581.4,1581.2,1.26495]
[1744848321726,1.6655,1581.3,1581.2,1.26495]
[1744848322321,1.6655,1581.3,1581.2,3.03545]
[1744848323128,1.66358317,1581.5,1581.4,1.2648]